bitfinex/quotes_SOLUSD_20250617
["timestamp","ask_amount","ask_price","bid_price","bid_amount"]
[1750178806984,42.50222934,146.97,146.92,7.23251901]
[1750178807184,42.50222934,146.97,146.94,11.55789955]
[1750178807682,42.50222934,146.97,146.92,7.23251901]
[1750178807891,42.50222934,146.97,146.94,11.55789955]
[1750178809990,9.6977254,146.97,146.96,11.55789955]
[1750178810189,16.5019309,146.97,146.92,0.28432314]
[1750178810393,11.55789955,146.96,146.92,11.55789955]
[1750178810610,6.80503572,146.95,146.92,11.55789955]
[1750178810823,6.80503572,146.95,146.91,1.4260164]
[1750178811022,18.36293527,146.95,146.91,1.4260164]
[1750178811223,18.36293527,146.95,146.91,12.98391595]
[1750178811808,159.45789955,146.94,146.91,1.4260164]
[1750178812436,11.55789955,146.93,146.91,1.4260164]
[1750178812931,6.80642526,146.92,146.91,1.4260164]
[1750178813518,18.36432481,146.92,146.91,1.4260164]
[1750178814719,11.82484926,146.92,146.91,1.4260164]
[1750178814925,23.38274881,146.92,146.91,1.4260164]
[1750178815507,52.66274881,146.92,146.91,1.4260164]
[1750178815706,47.64432481,146.92,146.91,1.4260164]
[1750178815906,52.66529815,146.92,146.91,1.4260164]
[1750178816439,52.66452258,146.92,146.91,1.4260164]
[1750178816929,5.02019777,146.92,146.91,1.4260164]
[1750178817238,5.02265131,146.93,146.91,1.4260164]
[1750178817928,5.02265131,146.93,146.91,12.98391595]
[1750178818130,147.9,146.94,146.91,12.98391595]
[1750178818704,154.70557197,146.94,146.91,12.98391595]
[1750178819229,5.02925678,146.93,146.91,1.4260164]
[1750178819409,166.26347152,146.94,146.91,1.4260164]
[1750178819604,5.02901797,146.93,146.91,1.4260164]
[1750178819804,166.26347152,146.94,146.91,1.4260164]
[1750178820111,5.02937383,146.93,146.91,1.4260164]
[1750178820314,5.02937383,146.92,146.91,1.4260164]
[1750178821044,11.83579909,146.92,146.91,1.4260164]
[1750178821542,5.02937383,146.92,146.91,1.4260164]
[1750178821830,5.02937383,146.92,146.91,12.98391595]
[1750178822129,154.70585674,146.94,146.91,12.98391595]
[1750178822438,5.02798404,146.93,146.91,12.98391595]
[1750178822636,154.70558401,146.94,146.91,12.98391595]
[1750178822844,147.9,146.94,146.92,6.81112459]
[1750178823235,5.02773493,146.93,146.91,1.4260164]
[1750178823546,147.9,146.94,146.92,6.81112459]
[1750178823947,147.9,146.94,146.91,8.23714099]
[1750178824341,154.70550523,146.94,146.91,8.23714099]
[1750178824517,154.70550523,146.94,146.91,1.4260164]
[1750178824835,11.8396218,146.93,146.91,1.4260164]
[1750178825030,154.70550523,146.94,146.91,1.4260164]
[1750178825031,5.02906107,146.92,146.91,1.4260164]
[1750178825639,11.83548633,146.92,146.91,1.4260164]
[1750178825850,18.64661092,146.92,146.91,1.4260164]
[1750178826331,23.67982259,146.92,146.91,1.4260164]
[1750178826719,16.868698,146.92,146.91,1.4260164]
[1750178827049,28.55432454,146.92,146.91,1.4260164]
[1750178827747,16.87001305,146.92,146.91,1.4260164]
[1750178827943,11.83680138,146.92,146.91,1.4260164]
[1750178828247,11.83681584,146.92,146.91,1.4260164]
[1750178828620,5.03039058,146.92,146.91,13.11032789]
[1750178828829,11.83856992,146.94,146.91,13.11032789]
[1750178829027,5.03071165,146.93,146.91,13.11032789]
[1750178829239,6.80561983,146.94,146.91,13.11032789]
[1750178829459,5.03071463,146.93,146.91,13.11032789]
[1750178829630,6.80561983,146.94,146.91,13.11032789]
[1750178829828,5.03068686,146.93,146.91,13.11032789]
[1750178830137,11.83918982,146.94,146.91,13.11032789]
[1750178830329,5.03135268,146.93,146.91,13.11032789]
[1750178830522,5.03062863,146.92,146.91,1.4260164]
[1750178830840,37.68431149,146.95,146.91,1.4260164]
[1750178830841,6.80599889,146.93,146.91,1.4260164]
[1750178831017,26.0,146.95,146.92,11.68431149]
[1750178831218,5.03055616,146.94,146.92,11.68431149]
[1750178831445,32.80504466,146.95,146.92,11.68431149]
[1750178831762,5.03178125,146.94,146.92,11.68431149]
[1750178832067,32.80504466,146.95,146.91,13.11032789]
[1750178832214,5.03156774,146.94,146.91,13.11032789]
[1750178832419,32.80504466,146.95,146.91,13.11032789]
[1750178832619,32.80504466,146.95,146.91,1.4260164]
[1750178832620,11.83745449,146.94,146.91,1.4260164]
[1750178832846,5.03185933,146.93,146.91,1.4260164]
[1750178833147,6.80559516,146.94,146.91,1.4260164]
[1750178833343,5.0318694,146.93,146.91,1.4260164]
[1750178833531,6.80559516,146.94,146.91,13.11032789]
[1750178833728,11.83756125,146.93,146.91,1.4260164]
[1750178833929,5.03147086,146.92,146.91,1.4260164]
[1750178834340,18.49029329,146.93,146.91,1.4260164]
[1750178834518,5.03071986,146.92,146.91,1.4260164]
[1750178835851,11.83714512,146.92,146.91,1.4260164]
[1750178836053,23.52062255,146.92,146.91,1.4260164]
[1750178837740,23.51937608,146.92,146.91,1.4260164]
[1750178838342,28.55400727,146.92,146.91,1.4260164]
[1750178838861,59.37390727,146.92,146.91,1.4260164]
[1750178839757,78.1657177,146.92,146.91,1.4260164]
[1750178839931,26.0,146.89,146.83,5.53820317]
[1750178840131,11.68431149,146.85,146.83,5.53820317]
[1750178840325,11.68431149,146.84,146.83,5.53820317]
[1750178840556,5.02278511,146.86,146.83,17.22251466]
[1750178840733,31.68415422,146.92,146.85,11.68431149]
[1750178840734,11.68431149,146.9,146.85,11.68431149]
[1750178840932,5.02272527,146.89,146.86,11.68431149]
[1750178841163,5.02272527,146.88,146.83,5.53820317]
[1750178841366,5.02272527,146.87,146.84,11.68431149]
[1750178841662,11.68431149,146.89,146.85,11.68431149]
[1750178841857,6.80874242,146.87,146.85,11.68431149]
[1750178842029,6.80874242,146.87,146.84,11.68431149]
[1750178842353,6.80874242,146.87,146.83,5.53820317]
[1750178842354,18.49305391,146.87,146.83,17.22251466]
[1750178842534,18.49305391,146.87,146.83,5.53820317]
[1750178843053,18.49305391,146.87,146.83,17.22251466]
[1750178843354,16.70123947,146.86,146.83,5.53820317]
[1750178843571,5.01725001,146.86,146.83,5.53820317]
[1750178843860,18.49305391,146.87,146.83,5.53820317]
[1750178844034,5.01721893,146.86,146.83,5.53820317]
[1750178844239,11.82268499,146.87,146.83,17.22251466]
[1750178844546,23.50699648,146.87,146.83,17.22251466]
[1750178844748,18.49305391,146.87,146.83,17.22251466]
[1750178845139,18.49305391,146.87,146.83,5.53820317]
[1750178845341,23.50615291,146.87,146.83,5.53820317]
[1750178845563,11.68431149,146.86,146.83,5.53820317]
[1750178845856,23.50615291,146.87,146.83,17.22251466]
[1750178846058,18.49305391,146.87,146.83,17.22251466]
[1750178846239,5.01131242,146.87,146.83,17.22251466]
[1750178846443,5.01131242,146.88,146.84,11.68431149]
[1750178846645,11.81972616,146.88,146.84,11.68431149]
[1750178846862,11.81972616,146.88,146.84,6.81842711]
[1750178847647,180.70793155,146.89,146.86,6.81842711]
[1750178847957,180.70793155,146.89,146.85,6.81842711]
[1750178848159,187.52635866,146.89,146.85,6.81842711]
[1750178848459,161.52635866,146.89,146.85,6.81842711]
[1750178848845,161.52635866,146.89,146.83,5.53820317]
[1750178849183,161.52635866,146.89,146.84,6.81842711]
[1750178849344,161.52635866,146.89,146.85,6.81842711]
[1750178849666,154.70782939,146.89,146.85,6.81842711]
[1750178850763,161.5262565,146.89,146.85,6.81842711]
[1750178850955,6.81842711,146.87,146.83,13.91123028]
[1750178851160,6.81842711,146.88,146.84,6.81842711]
[1750178851586,154.70782939,146.89,146.84,6.81842711]
[1750178851874,6.81842711,146.88,146.84,6.81842711]
[1750178852275,6.81842711,146.88,146.83,12.35663028]
[1750178852847,13.62749296,146.87,146.83,12.35663028]
[1750178853049,18.63727246,146.88,146.84,6.81842711]
[1750178854077,18.63764696,146.88,146.84,6.81842711]
[1750178854655,5.0107701,146.88,146.87,6.81842711]
[1750178854859,1.5799,146.92,146.87,6.81842711]
[1750178854860,11.83049078,146.91,146.87,6.81842711]
[1750178855265,5.01206367,146.91,146.88,6.81842711]
[1750178855866,13.62495507,146.92,146.88,6.81842711]
[1750178856065,5.01758207,146.91,146.86,6.81842711]
[1750178856262,13.62495507,146.92,146.87,6.81842711]
[1750178856570,13.62495507,146.92,146.85,1.5298]
[1750178856571,11.83685534,146.91,146.85,1.5298]
[1750178856773,13.62568227,146.91,146.86,6.81842711]
[1750178856978,5.01822611,146.9,146.87,6.81842711]
[1750178857178,11.83665322,146.9,146.85,13.6277692]
[1750178857477,6.81842711,146.87,146.83,12.35663028]
[1750178857685,6.81842711,146.88,146.83,19.16722748]
[1750178857985,6.81842711,146.88,146.83,12.35663028]
[1750178858273,6.81842711,146.88,146.83,19.16722243]
[1750178858479,5.01694064,146.88,146.85,6.81842711]
[1750178858776,5.01694064,146.88,146.84,6.81842711]
[1750178858965,11.82527137,146.88,146.84,6.81842711]
[1750178859477,13.62671156,146.88,146.84,6.81842711]
[1750178859863,18.64633921,146.88,146.84,6.81842711]
[1750178860064,13.62671156,146.88,146.84,6.81842711]
[1750178860377,6.80794037,146.89,146.86,6.81842711]
[1750178860579,6.80751355,146.9,146.83,12.34876402]
[1750178860769,6.80751355,146.9,146.86,6.81842711]
[1750178861173,11.824557,146.9,146.86,6.81842711]
[1750178861390,6.80751355,146.9,146.86,6.81842711]
[1750178861561,13.62594066,146.9,146.86,6.81842711]
[1750178861966,13.62594066,146.9,146.85,6.81842711]
[1750178862187,18.64339055,146.9,146.85,6.81842711]
[1750178862380,5.0176729,146.89,146.85,6.81842711]
[1750178862760,13.62594066,146.9,146.86,6.81842711]
[1750178863160,147.9,146.89,146.86,13.62763306]
[1750178863395,147.9,146.89,146.86,6.80920595]
[1750178863613,147.9,146.89,146.88,6.81842711]
[1750178864387,147.9,146.94,146.88,6.81842711]
[1750178864588,5.01993942,146.93,146.88,0.14216157]
[1750178864766,161.5239459,146.94,146.89,6.81842711]
[1750178864767,5.02051409,146.92,146.89,6.81842711]
[1750178864966,161.5239459,146.94,146.89,6.81842711]
[1750178864967,5.02051409,146.93,146.9,6.81842711]
[1750178865172,161.5239459,146.94,146.9,6.81842711]
[1750178865374,5.02176463,146.93,146.9,6.81842711]
[1750178865586,161.5239459,146.94,146.89,13.6260828]
[1750178865885,5.02568539,146.93,146.89,6.81842711]
[1750178866092,6.81842711,146.91,146.86,13.46403509]
[1750178866265,11.84488035,146.91,146.87,6.81842711]
[1750178866466,6.81842711,146.91,146.87,6.81842711]
[1750178866666,11.84488035,146.91,146.87,6.81842711]
[1750178866901,5.02645324,146.92,146.89,6.81842711]
[1750178867186,6.80646893,146.92,146.89,6.81842711]
[1750178868213,6.80646893,146.92,146.87,6.80854364]
[1750178868393,6.80596202,146.93,146.89,6.81842711]
[1750178868594,5.02676785,146.92,146.89,6.81842711]
[1750178868906,13.62438913,146.93,146.89,6.81842711]
[1750178869112,5.02636061,146.92,146.89,6.81842711]
[1750178869303,161.5241088,146.94,146.9,6.81842711]
[1750178869623,6.81842711,146.91,146.84,1.6596]
[1750178869789,5.02664838,146.93,146.87,6.81842711]
[1750178869989,11.84633086,146.92,146.88,6.81842711]
[1750178870206,5.02790375,146.91,146.87,6.81842711]
[1750178870408,6.80688857,146.91,146.87,6.81842711]
[1750178870792,13.62531568,146.91,146.87,6.81842711]
[1750178871506,18.65330924,146.9,146.85,6.80966973]
[1750178871689,11.84616643,146.89,146.85,6.81842711]
[1750178871892,6.81842711,146.89,146.83,12.34866549]
[1750178872213,13.62593674,146.9,146.85,6.81842711]
[1750178872396,5.02784394,146.89,146.86,6.81842711]
[1750178872713,13.62593674,146.9,146.86,6.81842711]
[1750178872916,5.02747344,146.89,146.86,6.81842711]
[1750178873093,13.62593674,146.9,146.86,6.81842711]
[1750178873289,5.02771433,146.89,146.86,6.81842711]
[1750178873489,5.02664838,146.93,146.88,6.81842711]
[1750178873686,5.03001263,146.92,146.87,1.6496]
[1750178873917,161.52409308,146.94,146.9,6.81842711]
[1750178874086,5.03057996,146.93,146.9,6.81842711]
[1750178874293,161.52409308,146.94,146.87,1.6496]
[1750178874488,11.85125929,146.93,146.89,6.81842711]
[1750178874698,5.03283218,146.92,146.88,6.81842711]
[1750178875016,6.80642526,146.92,146.88,6.81842711]
[1750178875320,5.03371383,146.91,146.88,6.81842711]
[1750178875517,6.80642526,146.92,146.89,6.81842711]
[1750178875691,5.03470568,146.91,146.87,8.45831057]
[1750178875900,6.80642526,146.92,146.89,6.81842711]
[1750178876205,5.03503725,146.91,146.89,6.81842711]
[1750178876403,6.80642526,146.92,146.89,6.81842711]
[1750178876604,5.0357887,146.91,146.89,6.81842711]
[1750178876801,6.80642526,146.92,146.89,6.81842711]
[1750178877000,5.03582904,146.91,146.89,6.81842711]
[1750178877202,6.80642526,146.92,146.89,6.81842711]
[1750178877403,5.03315175,146.91,146.9,6.81842711]
[1750178877713,11.8380344,146.93,146.9,6.81842711]
[1750178877714,6.80599668,146.93,146.9,6.81842711]
[1750178878029,5.03565182,146.92,146.88,6.80807158]
[1750178878204,13.62406804,146.94,146.9,6.81842711]
[1750178878410,5.03499295,146.93,146.9,6.81842711]
[1750178878613,5.03499295,146.92,146.9,6.81842711]
[1750178878900,13.62406804,146.94,146.9,6.81842711]
[1750178879108,11.8421974,146.93,146.9,6.81842711]
[1750178879397,6.80600325,146.93,146.9,6.81842711]
[1750178879807,13.62443036,146.93,146.89,6.81842711]
[1750178880008,5.03611308,146.92,146.89,6.81842711]
[1750178880319,6.80600325,146.93,146.9,6.81842711]
[1750178880521,147.9,146.9,146.84,6.8]
[1750178880821,6.81842711,146.88,146.84,6.81842711]
[1750178881021,154.71842711,146.89,146.84,6.81842711]
[1750178881195,13.62670597,146.88,146.84,6.81842711]
[1750178882613,6.80827886,146.88,146.84,6.81842711]
[1750178883002,13.62670597,146.88,146.84,6.81842711]
[1750178883400,6.81842711,146.86,146.83,5.53820317]
[1750178883624,147.9,146.87,146.83,19.1671659]
[1750178883809,147.9,146.87,146.85,6.81842711]
[1750178884420,154.71842711,146.87,146.83,5.53820317]
[1750178884627,161.52730361,146.87,146.83,12.35663028]
[1750178885607,147.9,146.87,146.84,6.81842711]
[1750178886026,154.70882917,146.87,146.84,6.81842711]
[1750178886540,154.70882917,146.87,146.83,12.35663028]
[1750178886927,147.9,146.87,146.83,19.16711257]
[1750178887131,147.9,146.87,146.85,6.81842711]
[1750178888422,147.9,146.92,146.86,13.63685422]
[1750178888627,6.28843922,146.94,146.91,6.81842711]
[1750178888812,6.28843922,146.94,146.93,6.81842711]
[1750178889224,11.3210323,146.94,146.93,6.81842711]
[1750178889540,6.28843922,146.94,146.93,13.63685422]
[1750178889705,9.6977254,146.97,146.93,13.77901579]
[1750178890042,9.6977254,146.97,146.96,6.81842711]
[1750178891209,9.6977254,146.97,146.96,13.90732292]
[1750178891452,16.66666667,147.0,146.97,0.28432314]
[1750178891613,16.66666667,147.0,146.99,6.81842711]
[1750178891936,16.66666667,147.0,146.97,0.42648471]
[1750178892236,23.46949472,147.0,146.96,6.81842711]
[1750178892436,23.46949472,147.0,146.97,6.81842711]
[1750178892942,30.28792183,147.0,146.94,0.42648471]
[1750178893142,30.28792183,147.0,146.96,6.81842711]
[1750178893659,5.02453077,146.99,146.96,6.81842711]
[1750178893808,5.0240447,146.99,146.94,0.42648471]
[1750178894012,13.62198488,146.99,146.95,6.81842711]
[1750178894245,18.64588146,146.99,146.95,6.81842711]
[1750178894445,11.82745435,146.99,146.95,6.81842711]
[1750178894811,16.66666667,147.0,146.97,6.81842711]
[1750178895140,35.31224091,147.0,146.95,6.81842711]
[1750178895454,6.81842711,146.97,146.92,8.239]
[1750178895616,6.81842711,146.96,146.92,0.28432314]
[1750178895816,6.81842711,146.96,146.9,25.42964886]
[1750178896021,6.81842711,146.94,146.9,13.59842711]
[1750178896330,49.81438388,146.97,146.85,6.78]
[1750178896537,6.81842711,146.93,146.89,6.81842711]
[1750178896728,6.81842711,146.92,146.88,6.81842711]
[1750178897052,6.81842711,146.91,146.86,6.80920604]
[1750178897338,6.81842711,146.91,146.86,13.62763315]
[1750178897527,6.81842711,146.91,146.87,6.81842711]
[1750178897838,6.81842711,146.89,146.85,6.78]
[1750178898245,13.62633216,146.89,146.85,13.59842711]
[1750178898424,6.81842711,146.9,146.86,6.81842711]
[1750178898746,11.82630562,146.91,146.86,6.81842711]
[1750178899055,6.81842711,146.9,146.86,6.81842711]
[1750178900118,13.62587982,146.9,146.86,6.81842711]
[1750178900518,6.81842711,146.9,146.86,6.81842711]
[1750178900714,6.80699316,146.91,146.85,13.58965389]
[1750178900923,6.80650801,146.92,146.88,6.81842711]
[1750178901248,13.62493512,146.92,146.88,6.81842711]
[1750178901668,6.80650801,146.92,146.88,6.81842711]
[1750178901839,13.62453811,146.93,146.89,6.81842711]
[1750178902141,6.81842711,146.92,146.88,6.81842711]
[1750178903032,6.81842711,146.91,146.87,7.24491182]
[1750178904250,13.62547075,146.91,146.85,13.58949222]
[1750178904552,13.62547075,146.91,146.87,6.81842711]
[1750178904961,6.81842711,146.9,146.86,0.42648471]
[1750178905416,6.81842711,146.9,146.86,7.24491182]
[1750178905622,6.81842711,146.9,146.86,0.42648471]
[1750178905826,6.81842711,146.9,146.86,7.24491182]
[1750178906129,13.62547075,146.91,146.86,7.24491182]
[1750178906331,13.62547075,146.91,146.87,6.81842711]
[1750178907050,154.70655453,146.92,146.88,6.81842711]
[1750178907227,147.9,146.91,146.88,6.81842711]
[1750178907944,13.62664466,146.89,146.85,6.78]
[1750178908136,147.9,146.88,146.85,6.78]
[1750178908326,147.9,146.87,146.84,6.81842711]
[1750178909650,147.9,146.87,146.85,6.81842711]
[1750178909949,147.9,146.87,146.86,6.81842711]
[1750178910748,147.9,146.87,146.86,14.05411786]
[1750178913051,147.9,146.91,146.87,19.07613357]
[1750178913255,147.9,146.91,146.9,6.81842711]
[1750178914157,147.9,146.91,146.9,13.62577905]
[1750178914453,147.9,146.91,146.9,6.81842711]
[1750178914631,147.9,146.91,146.9,13.62577905]
[1750178914839,147.9,146.91,146.9,6.81842711]
[1750178915433,147.9,146.91,146.89,6.81842711]
[1750178917645,147.9,146.91,146.9,6.81842711]
[1750178918755,147.9,146.91,146.9,32.70191262]
[1750178919436,147.9,146.97,146.92,0.14216157]
[1750178919636,147.9,146.97,146.95,6.81842711]
[1750178920170,154.70412155,146.97,146.95,6.81842711]
[1750178920330,147.9,146.97,146.95,6.81842711]
[1750178922243,161.52254139,146.97,146.93,6.81842711]
[1750178922562,161.52254139,146.97,146.91,0.28432314]
[1750178922563,161.52254139,146.97,146.92,6.81842711]
[1750178922755,147.9,146.96,146.92,6.81842711]
[1750178923542,154.70463592,146.96,146.92,6.81842711]
[1750178924274,161.52306303,146.96,146.92,6.81842711]
[1750178924636,161.52306303,146.96,146.91,0.42648471]
[1750178924856,154.70463592,146.96,146.91,6.81842711]
[1750178925257,161.52306303,146.96,146.92,6.81842711]
[1750178925654,161.52306303,146.96,146.91,6.81842711]
[1750178926147,161.52306303,146.96,146.92,6.81842711]
[1750178926348,147.9,146.96,146.95,6.81842711]
[1750178926564,32.80414981,146.97,146.95,6.81842711]
[1750178926863,25.38964886,147.03,146.95,6.81842711]
[1750178926864,16.41517311,147.04,146.95,18.64964886]
[1750178927039,6.81842711,147.03,146.98,6.81842711]
[1750178927657,6.81842711,147.02,146.98,6.81842711]
[1750178927842,13.62059844,147.02,146.98,6.81842711]
[1750178928050,13.62024417,147.02,146.98,6.81842711]
[1750178928251,6.80181706,147.02,146.98,6.81842711]
[1750178928450,13.62024417,147.02,146.98,6.81842711]
[1750178928838,18.46869299,147.02,146.98,11.66687593]
[1750178929148,18.46869299,147.02,146.96,7.08872567]
[1750178929454,18.46869299,147.02,146.98,11.66687593]
[1750178929657,11.66687593,147.0,146.93,1.6432]
[1750178929961,6.80181706,147.02,146.93,1.6432]
[1750178929962,11.66687593,146.99,146.94,12.09336064]
[1750178930169,11.66687593,146.97,146.91,6.74]
[1750178930343,11.66687593,146.96,146.91,11.66687593]
[1750178930935,5.00579361,146.98,146.91,11.66687593]
[1750178931134,11.66687593,146.96,146.91,11.66687593]
[1750178931339,6.80503572,146.95,146.89,8.4508358]
[1750178931557,6.80503572,146.95,146.91,11.66687593]
[1750178932151,18.47191165,146.95,146.89,8.4508358]
[1750178932443,11.66687593,146.94,146.9,11.66687593]
[1750178932754,18.47191165,146.95,146.9,11.66687593]
[1750178933356,18.47191165,146.95,146.89,8.4508358]
[1750178933667,11.66687593,146.92,146.88,0.42648471]
[1750178933864,11.66687593,146.91,146.86,20.10686736]
[1750178934039,11.66687593,146.92,146.87,11.66687593]
[1750178934568,11.66687593,146.92,146.86,20.10686736]
[1750178934765,18.4737254,146.92,146.87,11.66687593]
[1750178934963,5.01167739,146.94,146.91,11.66687593]
[1750178935270,147.9,146.95,146.92,11.66687593]
[1750178935577,11.66687593,146.93,146.88,12.09336064]
[1750178935751,11.66687593,146.93,146.89,11.66687593]
[1750178936568,147.9,146.94,146.85,34.47504686]
[1750178936765,18.47422787,146.9,146.85,11.66687593]
[1750178937470,11.66687593,146.89,146.85,11.66687593]
[1750178937845,6.80735194,146.9,146.85,11.66687593]
[1750178938069,18.47422787,146.9,146.85,11.66687593]
[1750178938274,6.80735194,146.9,146.86,11.66687593]
[1750178938461,18.47422787,146.9,146.86,11.66687593]
[1750178939064,6.80735194,146.9,146.86,11.66687593]
[1750178939373,18.47422787,146.9,146.86,11.66687593]
[1750178939971,6.80735194,146.9,146.87,11.66687593]
[1750178940454,18.47422787,146.9,146.85,6.80957709]
[1750178940772,18.47422787,146.9,146.86,11.66687593]
[1750178941073,11.66687593,146.89,146.84,11.66687593]
[1750178941247,11.66687593,146.89,146.85,11.66687593]
[1750178941679,18.47422787,146.9,146.85,11.66687593]
[1750178942165,6.80827886,146.88,146.85,11.66687593]
[1750178942569,6.80827886,146.88,146.83,5.53820317]
[1750178942570,11.66687593,146.87,146.83,5.53820317]
[1750178942756,11.66687593,146.86,146.83,5.53820317]
[1750178942960,20.89559106,146.87,146.83,5.53820317]
[1750178943162,25.91143955,146.87,146.83,5.53820317]
[1750178943572,11.66687593,146.86,146.83,5.53820317]
[1750178943875,27.43625477,146.87,146.83,5.53820317]
[1750178944058,17.5631728,146.87,146.83,17.2050791]
[1750178944259,29.23004873,146.87,146.83,17.2050791]
[1750178944475,11.66687593,146.86,146.83,5.53820317]
[1750178944960,37.66687593,146.84,146.83,5.53820317]
[1750178945171,26.0,146.81,146.69,6.81709727]
[1750178945406,55.08,146.8,146.68,18.21652535]
[1750178945558,11.66687593,146.79,146.68,14.81664677]
[1750178945761,26.0,146.79,146.68,14.81664677]
[1750178945957,26.0,146.79,146.7,26.0]
[1750178946183,7.23844069,146.81,146.7,6.81663258]
[1750178946392,18.64964886,146.8,146.7,18.48350851]
[1750178946590,26.0,146.82,146.71,18.64964886]
[1750178946591,6.8110735,146.82,146.71,18.64964886]
[1750178946755,6.8110735,146.82,146.75,0.42648471]
[1750178946955,11.66687593,146.82,146.75,19.07613357]
[1750178947196,11.81616281,146.84,146.75,19.07613357]
[1750178947360,11.66687593,146.82,146.75,19.07613357]
[1750178947556,23.48341299,146.84,146.8,11.66687593]
[1750178947791,11.66687593,146.83,146.75,19.07613357]
[1750178947972,0.5,146.83,146.75,19.07613357]
[1750178948176,7.31063995,146.83,146.77,6.81303991]
[1750178948488,26.0,146.79,146.71,0.14216157]
[1750178948660,7.7262,146.82,146.7,6.81663258]
[1750178948859,0.14216157,146.81,146.7,23.85821403]
[1750178949084,6.81063995,146.83,146.7,35.52508996]
[1750178949260,19.07613357,146.82,146.78,11.66687593]
[1750178949458,6.5324,146.85,146.77,37.66687593]
[1750178949683,18.64964886,146.84,146.77,26.0]
[1750178949880,6.5324,146.85,146.79,11.66687593]
[1750178950098,6.5324,146.85,146.77,26.42648471]
[1750178950099,9.22871513,146.87,146.82,11.66687593]
[1750178950391,27.70437519,146.87,146.79,32.81245316]
[1750178950685,16.03749926,146.87,146.79,32.81245316]
[1750178950860,16.03749926,146.87,146.83,11.66687593]
[1750178951181,16.03749926,146.87,146.79,32.81245316]
[1750178951182,9.22871513,146.87,146.79,32.81245316]
[1750178951379,9.22871513,146.87,146.8,19.07613357]
[1750178952059,11.66687593,146.86,146.81,11.66687593]
[1750178952274,11.66687593,146.82,146.76,0.14216157]
[1750178952586,26.0,146.8,146.69,6.81709727]
[1750178952761,11.66687593,146.79,146.74,11.66687593]
[1750178952965,11.66687593,146.79,146.7,11.66687593]
[1750178952966,11.66687593,146.75,146.69,6.81709727]
[1750178953169,26.0,146.8,146.68,6.81750552]
[1750178953170,11.66687593,146.79,146.68,6.81750552]
[1750178953483,26.0,146.76,146.67,39.47515979]
[1750178953661,26.0,146.76,146.65,9.0215]
[1750178953662,11.66687593,146.71,146.66,11.66687593]
[1750178953856,26.0,146.72,146.65,0.18]
[1750178954063,32.81440793,146.75,146.7,11.66687593]
[1750178954286,11.66687593,146.72,146.66,32.81840207]
[1750178954480,32.81440793,146.75,146.68,11.16687593]
[1750178954680,11.66687593,146.73,146.68,11.16687593]
[1750178954861,32.81440793,146.75,146.67,0.42648471]
[1750178955064,32.81440793,146.75,146.66,6.81840207]
[1750178955065,11.66687593,146.73,146.66,26.0]
[1750178955265,18.64964886,146.74,146.65,0.18]
[1750178955482,18.64964886,146.74,146.67,11.66687593]
[1750178955692,11.66687593,146.73,146.69,11.66687593]
[1750178955987,32.81440793,146.75,146.67,11.66687593]
[1750178956170,11.66687593,146.72,146.65,6.99855273]
[1750178956377,26.0,146.74,146.67,11.66687593]
[1750178956581,11.66687593,146.72,146.67,11.66687593]
[1750178956792,11.66687593,146.7,146.65,0.18]
[1750178956999,11.66687593,146.66,146.65,0.18]
[1750178957291,30.31652479,146.66,146.65,0.18]
[1750178957596,11.66687593,146.66,146.65,0.18]
[1750178957887,26.0,146.66,146.65,0.18]
[1750178958092,26.0,146.67,146.65,0.18]
[1750178958282,11.66687593,146.66,146.65,0.18]
[1750178958963,16.94152199,146.66,146.65,0.18]
[1750178959590,32.8184674,146.67,146.65,0.18]
[1750178960489,6.81709727,146.69,146.65,0.18]
[1750178961067,16.94152199,146.66,146.65,0.18]
[1750178961734,6.81709727,146.69,146.65,0.18]
[1750178961893,16.94152199,146.66,146.65,0.18]
[1750178962075,6.81523887,146.73,146.65,0.18]
[1750178962273,16.94152199,146.71,146.67,16.94152199]
[1750178962470,16.94152199,146.71,146.65,0.18]
[1750178962793,8.39771729,146.78,146.7,16.94152199]
[1750178963091,8.39771729,146.78,146.66,0.42648471]
[1750178963092,16.94152199,146.74,146.66,0.42648471]
[1750178963283,16.94152199,146.74,146.65,51.07498254]
[1750178963466,25.43001051,146.78,146.65,68.12237428]
[1750178963671,26.0,146.77,146.7,16.94152199]
[1750178963893,16.94152199,146.73,146.65,68.12237428]
[1750178964198,23.75834282,146.7,146.65,16.94152199]
[1750178964369,16.94152199,146.7,146.65,16.94152199]
[1750178964879,17.03765071,146.74,146.65,16.94152199]
[1750178965085,16.94152199,146.7,146.65,16.94152199]
[1750178965278,23.75847928,146.7,146.65,16.94152199]
[1750178965481,6.81695729,146.7,146.63,16.94152199]
[1750178965685,6.81695729,146.7,146.62,7.18]
[1750178965686,16.94152199,146.69,146.62,14.00033273]
[1750178966003,26.0,146.75,146.68,16.94152199]
[1750178966216,16.94152199,146.75,146.71,16.94152199]
[1750178966802,16.94152199,146.74,146.67,26.0]
[1750178967005,16.94152199,146.74,146.7,16.94152199]